[Event "*** SCC Grand Prix: Titled Tuesday Blitz"]
[Site "Chess.com"]
[Date "2020.07.07"]
[Round "8"]
[White "chegueps"]
[Black "SerGo055"]
[Result "1/2-1/2"]
[WhiteElo "2422"]
[BlackElo "2554"]
[TimeControl "180+1"]
[EndTime "11:36:54 PDT"]
[Termination "Game drawn by agreement"]

1. d4 {[%clk 0:03:00.9]} 1... Nf6 {[%clk 0:02:56.4]} 2. Nf3 {[%clk 0:03:01]}
2... e6 {[%clk 0:02:56.1]} 3. e3 {[%clk 0:03:01.1]} 3... c5 {[%clk 0:02:53]} 4.
Bd3 {[%clk 0:03:02]} 4... Nc6 {[%clk 0:02:52.4]} 5. O-O {[%clk 0:03:01.5]} 5...
Be7 {[%clk 0:02:51.3]} 6. b3 {[%clk 0:03:01.6]} 6... O-O {[%clk 0:02:51.2]} 7.
Bb2 {[%clk 0:03:02.1]} 7... b6 {[%clk 0:02:51.3]} 8. c4 {[%clk 0:03:01.6]} 8...
Bb7 {[%clk 0:02:51.6]} 9. Nc3 {[%clk 0:03:01.6]} 9... cxd4 {[%clk 0:02:50.3]}
10. exd4 {[%clk 0:03:01.8]} 10... d5 {[%clk 0:02:50.1]} 11. Re1 {[%clk
0:02:57.9]} 11... Rc8 {[%clk 0:02:49.1]} 12. Rc1 {[%clk 0:02:56.2]} 12... dxc4
{[%clk 0:02:43.1]} 13. bxc4 {[%clk 0:02:56.7]} 13... Na5 {[%clk 0:02:42.5]} 14.
Qe2 {[%clk 0:02:49.5]} 14... Bxf3 {[%clk 0:02:33.3]} 15. Qxf3 {[%clk 0:02:46.4]}
15... Qxd4 {[%clk 0:02:33.5]} 16. Nd5 {[%clk 0:02:38.5]} 16... Qxb2 {[%clk
0:02:07.6]} 17. Nxe7+ {[%clk 0:02:37.9]} 17... Kh8 {[%clk 0:02:08.1]} 18. Nxc8
{[%clk 0:02:38.5]} 18... Rxc8 {[%clk 0:02:08.6]} 19. Rc2 {[%clk 0:02:26.4]}
19... Qd4 {[%clk 0:02:05.7]} 20. Bf1 {[%clk 0:02:24.6]} 20... Nc6 {[%clk
0:01:52.2]} 21. Rd1 {[%clk 0:02:22.2]} 21... Qc5 {[%clk 0:01:51.9]} 22. Rcd2
{[%clk 0:01:53.3]} 22... e5 {[%clk 0:01:39.1]} 23. g3 {[%clk 0:01:33.7]} 23...
Nd4 {[%clk 0:01:26.6]} 24. Qb7 {[%clk 0:01:32]} 24... Qc7 {[%clk 0:01:24.2]} 25.
Bg2 {[%clk 0:01:18.9]} 25... Qxb7 {[%clk 0:01:20.2]} 26. Bxb7 {[%clk 0:01:19.8]}
26... Rc7 {[%clk 0:01:02.5]} 27. Bg2 {[%clk 0:01:11.7]} 27... Nd7 {[%clk
0:00:53]} 28. f4 {[%clk 0:01:08.1]} 28... f6 {[%clk 0:00:52.4]} 29. fxe5 {[%clk
0:01:08.1]} 29... fxe5 {[%clk 0:00:51.8]} 30. Bd5 {[%clk 0:01:08]} 30... h6
{[%clk 0:00:48.4]} 31. Rf2 {[%clk 0:00:53.5]} 31... Nf6 {[%clk 0:00:35.3]} 32.
Re1 {[%clk 0:00:53.3]} 32... Re7 {[%clk 0:00:34.5]} 33. h4 {[%clk 0:00:50.6]}
33... Kh7 {[%clk 0:00:30.2]} 34. Kg2 {[%clk 0:00:49.8]} 34... Kg6 {[%clk
0:00:27.2]} 35. Kh3 {[%clk 0:00:49.5]} 35... h5 {[%clk 0:00:25.1]} 36. Be4+
{[%clk 0:00:49.2]} 36... Kh6 {[%clk 0:00:23.1]} 37. Bd5 {[%clk 0:00:44]} 37...
b5 {[%clk 0:00:16.4]} 38. Rd2 {[%clk 0:00:41.1]} 38... Nxd5 {[%clk 0:00:13.2]}
39. cxd5 {[%clk 0:00:42]} 39... Nf3 {[%clk 0:00:12.8]} 40. d6 {[%clk 0:00:41.5]}
40... Rd7 {[%clk 0:00:12.4]} 41. Rde2 {[%clk 0:00:29.7]} 41... Nxe1 {[%clk
0:00:12.2]} 42. Rxe1 {[%clk 0:00:30.6]} 42... Rxd6 {[%clk 0:00:11.9]} 43. Rxe5
{[%clk 0:00:31.5]} 43... a6 {[%clk 0:00:12.1]} 44. Re8 {[%clk 0:00:30.2]} 44...
Rd2 {[%clk 0:00:09.6]} 45. Re6+ {[%clk 0:00:30.4]} 45... g6 {[%clk 0:00:09.4]}
46. Rxa6 {[%clk 0:00:31.3]} 46... Rb2 {[%clk 0:00:09]} 47. a3 {[%clk 0:00:29.7]}
47... Kg7 {[%clk 0:00:08.1]} 48. Ra7+ {[%clk 0:00:29.4]} 48... Kf6 {[%clk
0:00:08.2]} 49. Ra6+ {[%clk 0:00:30.3]} 49... Kf5 {[%clk 0:00:08.5]} 50. Ra7
{[%clk 0:00:28.8]} 50... b4 {[%clk 0:00:06.2]} 51. Ra5+ {[%clk 0:00:26.7]} 51...
Kf6 {[%clk 0:00:05.3]} 52. Ra6+ {[%clk 0:00:26.7]} 52... Kg7 {[%clk 0:00:05.6]}
53. Ra7+ {[%clk 0:00:26.7]} 53... Kh6 {[%clk 0:00:06]} 1/2-1/2

[Event "*** SCC Grand Prix: Titled Tuesday Blitz"]
[Site "Chess.com"]
[Date "2020.07.07"]
[Round "8"]
[White "GM4life"]
[Black "SamuelGhimpu2003"]
[Result "0-1"]
[WhiteElo "2368"]
[BlackElo "2520"]
[TimeControl "180+1"]
[EndTime "11:36:54 PDT"]
[Termination "SamuelGhimpu2003 won by checkmate"]

1. e4 {[%clk 0:03:00.9]} 1... e6 {[%clk 0:02:58.9]} 2. d4 {[%clk 0:03:01.3]}
2... d5 {[%clk 0:02:58.7]} 3. Nc3 {[%clk 0:03:02.2]} 3... Nf6 {[%clk 0:02:57.3]}
4. e5 {[%clk 0:03:02]} 4... Nfd7 {[%clk 0:02:57.3]} 5. f4 {[%clk 0:03:02.1]}
5... c5 {[%clk 0:02:58.2]} 6. Nf3 {[%clk 0:03:00.7]} 6... Nc6 {[%clk 0:02:58.7]}
7. Be3 {[%clk 0:03:01.3]} 7... Be7 {[%clk 0:02:57.5]} 8. dxc5 {[%clk 0:03:00.9]}
8... O-O {[%clk 0:02:58.4]} 9. Qd2 {[%clk 0:03:01.1]} 9... Qa5 {[%clk
0:02:57.9]} 10. O-O-O {[%clk 0:02:54.1]} 10... b6 {[%clk 0:02:57.1]} 11. Bb5
{[%clk 0:02:45.6]} 11... Nb4 {[%clk 0:02:56.8]} 12. a3 {[%clk 0:02:29.8]} 12...
bxc5 {[%clk 0:02:56.9]} 13. Bxd7 {[%clk 0:02:22.6]} 13... Bxd7 {[%clk
0:02:57.8]} 14. axb4 {[%clk 0:02:21.7]} 14... cxb4 {[%clk 0:02:58.7]} 15. Nb1
{[%clk 0:02:21.6]} 15... Rfc8 {[%clk 0:02:59.6]} 16. Qd4 {[%clk 0:02:16]} 16...
Ba4 {[%clk 0:02:12.3]} 17. Rd2 {[%clk 0:02:14.4]} 17... Rc4 {[%clk 0:02:08.6]}
18. Qd3 {[%clk 0:02:11.3]} 18... Rac8 {[%clk 0:02:04.6]} 19. Nd4 {[%clk
0:02:01.3]} 19... Bc5 {[%clk 0:01:54.3]} 20. b3 {[%clk 0:01:55.2]} 20... Rc3
{[%clk 0:01:43.5]} 21. Nxc3 {[%clk 0:01:34.4]} 21... bxc3 {[%clk 0:01:44.4]} 22.
Re2 {[%clk 0:01:34.8]} 22... Bxd4 {[%clk 0:01:36.3]} 23. Kd1 {[%clk 0:00:53.9]}
23... Bxb3 {[%clk 0:01:21.9]} 24. Qxd4 {[%clk 0:00:49.1]} 24... Qa1+ {[%clk
0:01:06.2]} 25. Bc1 {[%clk 0:00:48.2]} 25... Bc4 {[%clk 0:01:03.9]} 26. Re3
{[%clk 0:00:43.6]} 26... Rb8 {[%clk 0:01:03]} 27. Qxc3 {[%clk 0:00:41.6]} 27...
Qa4 {[%clk 0:01:03.5]} 28. Qa3 {[%clk 0:00:39.3]} 28... Qc6 {[%clk 0:01:01.5]}
29. Bb2 {[%clk 0:00:31.3]} 29... d4 {[%clk 0:00:59.8]} 30. Rg3 {[%clk
0:00:28.9]} 30... d3 {[%clk 0:00:57.7]} 31. Qc3 {[%clk 0:00:21.3]} 31... dxc2+
{[%clk 0:00:54.6]} 32. Kxc2 {[%clk 0:00:21.2]} 32... Bb3+ {[%clk 0:00:53.4]} 33.
Kc1 {[%clk 0:00:20.5]} 33... Qa6 {[%clk 0:00:50]} 34. Qxb3 {[%clk 0:00:15.7]}
34... Rxb3 {[%clk 0:00:47.9]} 35. Rxb3 {[%clk 0:00:16.6]} 35... h5 {[%clk
0:00:47.4]} 36. Rd1 {[%clk 0:00:16.5]} 36... Qc6+ {[%clk 0:00:46.8]} 37. Rc3
{[%clk 0:00:15.9]} 37... Qxg2 {[%clk 0:00:47.7]} 38. Rd8+ {[%clk 0:00:14.9]}
38... Kh7 {[%clk 0:00:47.3]} 39. Rg3 {[%clk 0:00:14.9]} 39... Qh1+ {[%clk
0:00:45.3]} 40. Rd1 {[%clk 0:00:10.5]} 40... Qxh2 {[%clk 0:00:45.5]} 41. Rdg1
{[%clk 0:00:11.4]} 41... g6 {[%clk 0:00:41.9]} 42. Bc3 {[%clk 0:00:10]} 42... h4
{[%clk 0:00:41.7]} 43. Rg4 {[%clk 0:00:09.7]} 43... h3 {[%clk 0:00:35.4]} 44.
Bb4 {[%clk 0:00:09.8]} 44... Qf2 {[%clk 0:00:32.5]} 45. Be7 {[%clk 0:00:09]}
45... h2 {[%clk 0:00:26.5]} 46. Rh1 {[%clk 0:00:08.9]} 46... g5 {[%clk
0:00:23.1]} 47. Rxg5 {[%clk 0:00:07.4]} 47... Qxf4+ {[%clk 0:00:20.5]} 48. Kb2
{[%clk 0:00:07.9]} 48... Qd2+ {[%clk 0:00:18.9]} 49. Kb3 {[%clk 0:00:08]} 49...
Qd5+ {[%clk 0:00:17.1]} 50. Kc3 {[%clk 0:00:07.2]} 50... Qxh1 {[%clk 0:00:18]}
51. Bf6 {[%clk 0:00:06.5]} 51... Qf3+ {[%clk 0:00:16.6]} 52. Kd4 {[%clk
0:00:07.4]} 52... h1=Q {[%clk 0:00:16.8]} 53. Rg7+ {[%clk 0:00:07.5]} 53... Kh6
{[%clk 0:00:17.3]} 54. Rxf7 {[%clk 0:00:07.6]} 54... Qhd1+ {[%clk 0:00:16.8]}
55. Kc5 {[%clk 0:00:06.7]} 55... Qfd5+ {[%clk 0:00:17.2]} 56. Kb4 {[%clk
0:00:05.7]} 56... Q1b3# {[%clk 0:00:18.1]} 0-1

[Event "*** SCC Grand Prix: Titled Tuesday Blitz"]
[Site "Chess.com"]
[Date "2020.07.07"]
[Round "8"]
[White "Firouzja2003"]
[Black "kirillshevchenko"]
[Result "1-0"]
[WhiteElo "3108"]
[BlackElo "2957"]
[TimeControl "180+1"]
[EndTime "11:36:57 PDT"]
[Termination "Firouzja2003 won by resignation"]

1. Nf3 {[%clk 0:03:00.9]} 1... Nf6 {[%clk 0:02:59.9]} 2. b3 {[%clk 0:03:00.7]}
2... g6 {[%clk 0:03:00.4]} 3. Bb2 {[%clk 0:03:00.9]} 3... Bg7 {[%clk 0:03:01]}
4. e3 {[%clk 0:02:59.3]} 4... O-O {[%clk 0:03:00.2]} 5. d4 {[%clk 0:02:59.1]}
5... b6 {[%clk 0:02:58.8]} 6. g3 {[%clk 0:02:51.6]} 6... Bb7 {[%clk 0:02:58.5]}
7. Bg2 {[%clk 0:02:51.8]} 7... c5 {[%clk 0:02:58.8]} 8. O-O {[%clk 0:02:51.2]}
8... cxd4 {[%clk 0:02:58.6]} 9. exd4 {[%clk 0:02:51.4]} 9... d5 {[%clk
0:02:54.9]} 10. Ne5 {[%clk 0:02:51.3]} 10... Nbd7 {[%clk 0:02:54.8]} 11. c4
{[%clk 0:02:50.6]} 11... Rb8 {[%clk 0:02:25.4]} 12. Nc3 {[%clk 0:02:27.7]} 12...
dxc4 {[%clk 0:02:24.5]} 13. Bxb7 {[%clk 0:02:27.5]} 13... Rxb7 {[%clk
0:02:25.4]} 14. Nc6 {[%clk 0:02:27.5]} 14... Qe8 {[%clk 0:02:07.2]} 15. bxc4
{[%clk 0:02:26]} 15... Nb8 {[%clk 0:01:54.7]} 16. Ne5 {[%clk 0:02:25.7]} 16...
Nc6 {[%clk 0:01:51.5]} 17. Qf3 {[%clk 0:02:20.9]} 17... Rc7 {[%clk 0:01:50.5]}
18. Nb5 {[%clk 0:02:17.1]} 18... Rc8 {[%clk 0:01:50.4]} 19. Rfe1 {[%clk
0:02:12.3]} 19... a6 {[%clk 0:01:43.6]} 20. Na3 {[%clk 0:01:10]} 20... Nxe5
{[%clk 0:01:38.2]} 21. dxe5 {[%clk 0:01:09.8]} 21... Nd7 {[%clk 0:01:38.6]} 22.
Rad1 {[%clk 0:01:06.8]} 22... Nc5 {[%clk 0:01:37.1]} 23. Nc2 {[%clk 0:01:03.8]}
23... Na4 {[%clk 0:01:24.3]} 24. Ba3 {[%clk 0:00:56]} 24... Rxc4 {[%clk
0:01:22.5]} 25. Ne3 {[%clk 0:00:56.1]} 25... Rc3 {[%clk 0:00:30.2]} 26. Bb4
{[%clk 0:00:55.7]} 26... Qb5 {[%clk 0:00:22.9]} 27. Bxc3 {[%clk 0:00:35]} 27...
Nxc3 {[%clk 0:00:23.8]} 28. Rd7 {[%clk 0:00:35.4]} 28... Qxe5 {[%clk 0:00:22.1]}
29. Nc2 {[%clk 0:00:30.4]} 29... Qb5 {[%clk 0:00:15.1]} 30. Rexe7 {[%clk
0:00:25.8]} 30... Qb1+ {[%clk 0:00:14.6]} 31. Ne1 {[%clk 0:00:25.4]} 31... Qxa2
{[%clk 0:00:14.8]} 32. Nd3 {[%clk 0:00:20.3]} 32... Nb5 {[%clk 0:00:06.6]} 33.
Qe3 {[%clk 0:00:10.5]} 33... Nd4 {[%clk 0:00:05.5]} 34. Re8 {[%clk 0:00:10]}
34... Qb1+ {[%clk 0:00:02.1]} 35. Kg2 {[%clk 0:00:08.4]} 35... Ne6 {[%clk
0:00:02.6]} 36. Rxf8+ {[%clk 0:00:08.1]} 36... Nxf8 {[%clk 0:00:01.4]} 37. Ra7
{[%clk 0:00:07.9]} 37... Qb5 {[%clk 0:00:02.3]} 38. Qf3 {[%clk 0:00:07.5]} 38...
Qc4 {[%clk 0:00:01.5]} 39. Nf4 {[%clk 0:00:07.3]} 39... b5 {[%clk 0:00:01.8]}
40. Nd5 {[%clk 0:00:07.5]} 40... f5 {[%clk 0:00:01.9]} 41. Ne7+ {[%clk
0:00:06.2]} 41... Kh8 {[%clk 0:00:02.4]} 42. Qb7 {[%clk 0:00:06]} 42... Qf7
{[%clk 0:00:01.7]} 43. Ra8 {[%clk 0:00:05.5]} 43... Bf6 {[%clk 0:00:01.8]} 44.
Nxg6+ {[%clk 0:00:05.1]} 44... Kg7 {[%clk 0:00:01.7]} 45. Qxf7+ {[%clk
0:00:05.4]} 45... Kxf7 {[%clk 0:00:02.6]} 46. Nxf8 {[%clk 0:00:06.3]} 46... b4
{[%clk 0:00:02.7]} 47. Nxh7 {[%clk 0:00:06.6]} 47... Bd4 {[%clk 0:00:01.6]} 48.
Ng5+ {[%clk 0:00:07]} 48... Kf6 {[%clk 0:00:01.3]} 49. Nf3 {[%clk 0:00:07.6]}
49... Bc3 {[%clk 0:00:01.7]} 50. Rxa6+ {[%clk 0:00:07.9]} 1-0

[Event "*** SCC Grand Prix: Titled Tuesday Blitz"]
[Site "Chess.com"]
[Date "2020.07.07"]
[Round "8"]
[White "chenxiaoyuer"]
[Black "SzMM19"]
[Result "1-0"]
[WhiteElo "2436"]
[BlackElo "2554"]
[TimeControl "180+1"]
[EndTime "11:37:00 PDT"]
[Termination "chenxiaoyuer won on time"]

1. e4 {[%clk 0:03:00.9]} 1... c5 {[%clk 0:02:59.6]} 2. Nf3 {[%clk 0:03:00.9]}
2... a6 {[%clk 0:02:59.3]} 3. g3 {[%clk 0:03:00.4]} 3... Nc6 {[%clk 0:02:58.5]}
4. Bg2 {[%clk 0:02:59.8]} 4... e5 {[%clk 0:02:59.2]} 5. O-O {[%clk 0:02:59.4]}
5... g6 {[%clk 0:02:59.8]} 6. d3 {[%clk 0:02:57.2]} 6... Bg7 {[%clk 0:03:00.1]}
7. Nbd2 {[%clk 0:02:55.9]} 7... d6 {[%clk 0:03:00.5]} 8. Re1 {[%clk 0:02:55.2]}
8... Nge7 {[%clk 0:03:00.9]} 9. Nf1 {[%clk 0:02:56]} 9... O-O {[%clk 0:03:00.8]}
10. a4 {[%clk 0:02:55.9]} 10... Rb8 {[%clk 0:03:01]} 11. c3 {[%clk 0:02:55.4]}
11... h6 {[%clk 0:03:00]} 12. h4 {[%clk 0:02:54.9]} 12... Be6 {[%clk 0:02:59.7]}
13. Ne3 {[%clk 0:02:26.9]} 13... Qd7 {[%clk 0:02:58.9]} 14. a5 {[%clk
0:02:12.9]} 14... f5 {[%clk 0:02:57.7]} 15. Nd2 {[%clk 0:02:01.7]} 15... f4
{[%clk 0:02:53.3]} 16. Nd5 {[%clk 0:02:00.7]} 16... Bh3 {[%clk 0:02:42.8]} 17.
Nc4 {[%clk 0:01:49.9]} 17... Bxg2 {[%clk 0:02:35.2]} 18. Kxg2 {[%clk 0:01:49]}
18... f3+ {[%clk 0:02:35.3]} 19. Kh2 {[%clk 0:01:48.8]} 19... Nxd5 {[%clk
0:02:35.5]} 20. exd5 {[%clk 0:01:48.9]} 20... Ne7 {[%clk 0:02:35.7]} 21. Ne3
{[%clk 0:01:31]} 21... g5 {[%clk 0:02:35.8]} 22. hxg5 {[%clk 0:01:26.8]} 22...
hxg5 {[%clk 0:02:35.6]} 23. Rh1 {[%clk 0:01:23.7]} 23... Kh7 {[%clk 0:02:00.1]}
24. Kg1+ {[%clk 0:01:17.1]} 24... Kg6 {[%clk 0:02:00.3]} 25. Qa4 {[%clk
0:01:14]} 25... Qxa4 {[%clk 0:01:44]} 26. Rxa4 {[%clk 0:01:14.9]} 26... Rh8
{[%clk 0:01:35.3]} 27. Rxh8 {[%clk 0:01:08.2]} 27... Rxh8 {[%clk 0:01:36]} 28.
Ra3 {[%clk 0:01:01.2]} 28... Bh6 {[%clk 0:00:56.1]} 29. Rb3 {[%clk 0:00:55.4]}
29... g4 {[%clk 0:00:55.3]} 30. c4 {[%clk 0:00:27.8]} 30... Bxe3 {[%clk
0:00:49.2]} 31. Bxe3 {[%clk 0:00:26.5]} 31... Nf5 {[%clk 0:00:50.1]} 32. Rxb7
{[%clk 0:00:22.4]} 32... Nxe3 {[%clk 0:00:45.6]} 33. fxe3 {[%clk 0:00:23.3]}
33... Rh3 {[%clk 0:00:46.1]} 34. Rb6 {[%clk 0:00:20]} 34... Rxg3+ {[%clk
0:00:45.5]} 35. Kf1 {[%clk 0:00:19.3]} 35... Rh3 {[%clk 0:00:45.4]} 36. Rxd6+
{[%clk 0:00:18.9]} 36... Kf5 {[%clk 0:00:45.5]} 37. Kf2 {[%clk 0:00:15.4]} 37...
Rh2+ {[%clk 0:00:45.7]} 38. Kg3 {[%clk 0:00:12.4]} 38... Rg2+ {[%clk 0:00:44.8]}
39. Kh4 {[%clk 0:00:12.7]} 39... e4 {[%clk 0:00:12.8]} 40. dxe4+ {[%clk
0:00:09.1]} 40... Kxe4 {[%clk 0:00:13.7]} 41. Re6+ {[%clk 0:00:05.9]} 41... Kd3
{[%clk 0:00:11.1]} 42. d6 {[%clk 0:00:06.1]} 42... Kxc4 {[%clk 0:00:03.9]} 43.
d7 {[%clk 0:00:06.2]} 43... Rd2 {[%clk 0:00:04.1]} 44. Kxg4 {[%clk 0:00:06.1]}
44... f2 {[%clk 0:00:04.6]} 45. Rf6 {[%clk 0:00:06.2]} 45... Kb3 {[%clk
0:00:01.6]} 46. Rxf2 {[%clk 0:00:05.6]} 46... Rxd7 {[%clk 0:00:01.2]} 47. Re2
{[%clk 0:00:05.5]} 47... Kb4 {[%clk 0:00:01.5]} 48. e4 {[%clk 0:00:05.7]} 48...
Kxa5 {[%clk 0:00:02.4]} 49. e5 {[%clk 0:00:06.2]} 49... Kb5 {[%clk 0:00:02.5]}
50. e6 {[%clk 0:00:06.6]} 50... Re7 {[%clk 0:00:03.4]} 51. Kf5 {[%clk 0:00:07]}
51... Kc6 {[%clk 0:00:04.3]} 52. Kf6 {[%clk 0:00:07.4]} 52... Re8 {[%clk
0:00:05.2]} 53. e7 {[%clk 0:00:06.2]} 1-0

[Event "*** SCC Grand Prix: Titled Tuesday Blitz"]
[Site "Chess.com"]
[Date "2020.07.07"]
[Round "8"]
[White "FMVolodymyrSakun"]
[Black "Al_Shima"]
[Result "1/2-1/2"]
[WhiteElo "2498"]
[BlackElo "2348"]
[TimeControl "180+1"]
[EndTime "11:37:00 PDT"]
[Termination "Game drawn by agreement"]

1. e4 {[%clk 0:03:00.9]} 1... d5 {[%clk 0:02:59.4]} 2. exd5 {[%clk 0:03:00.5]}
2... Nf6 {[%clk 0:02:59.9]} 3. d4 {[%clk 0:02:59.6]} 3... Nxd5 {[%clk
0:03:00.2]} 4. c4 {[%clk 0:02:59.6]} 4... Nb6 {[%clk 0:03:00]} 5. Nf3 {[%clk
0:02:59.4]} 5... g6 {[%clk 0:02:59.9]} 6. c5 {[%clk 0:02:58.3]} 6... Nd5 {[%clk
0:02:56.6]} 7. Bc4 {[%clk 0:02:58.4]} 7... Bg7 {[%clk 0:02:56.8]} 8. Nc3 {[%clk
0:02:56.1]} 8... c6 {[%clk 0:02:55.5]} 9. Qb3 {[%clk 0:02:53.9]} 9... O-O {[%clk
0:02:55.1]} 10. O-O {[%clk 0:02:50.4]} 10... Nxc3 {[%clk 0:02:51.7]} 11. bxc3
{[%clk 0:02:49.8]} 11... b5 {[%clk 0:02:49.8]} 12. cxb6 {[%clk 0:02:40.8]} 12...
axb6 {[%clk 0:02:49]} 13. Bg5 {[%clk 0:02:35.1]} 13... b5 {[%clk 0:02:48.5]} 14.
Bd3 {[%clk 0:02:31.1]} 14... Be6 {[%clk 0:02:47.1]} 15. Qc2 {[%clk 0:02:30.9]}
15... Bd5 {[%clk 0:02:42.6]} 16. Rfe1 {[%clk 0:02:25.6]} 16... Ra7 {[%clk
0:02:42.5]} 17. Nd2 {[%clk 0:02:21.9]} 17... Qd6 {[%clk 0:02:19.1]} 18. Ne4
{[%clk 0:02:13.6]} 18... Bxe4 {[%clk 0:02:18.8]} 19. Bxe4 {[%clk 0:02:10.3]}
19... e6 {[%clk 0:02:18.6]} 20. a4 {[%clk 0:02:01.2]} 20... bxa4 {[%clk
0:02:13.3]} 21. Rxa4 {[%clk 0:01:59.4]} 21... Rxa4 {[%clk 0:02:12.5]} 22. Qxa4
{[%clk 0:01:59.6]} 22... c5 {[%clk 0:02:12.3]} 23. Qa3 {[%clk 0:01:48.7]} 23...
Nd7 {[%clk 0:01:58.9]} 24. Be3 {[%clk 0:01:41]} 24... Rc8 {[%clk 0:01:54.5]} 25.
g3 {[%clk 0:01:37.1]} 25... Bf8 {[%clk 0:01:53.6]} 26. Qa7 {[%clk 0:01:28]}
26... cxd4 {[%clk 0:01:42.3]} 27. cxd4 {[%clk 0:01:20.3]} 27... Nf6 {[%clk
0:01:13.2]} 28. Qb7 {[%clk 0:01:09]} 28... Qb4 {[%clk 0:01:07.5]} 29. Rb1 {[%clk
0:00:53.9]} 29... Qxb7 {[%clk 0:01:05.5]} 30. Bxb7 {[%clk 0:00:54]} 30... Rc4
{[%clk 0:00:47.5]} 31. Ra1 {[%clk 0:00:43.9]} 31... Ng4 {[%clk 0:00:33.5]} 32.
Ra8 {[%clk 0:00:37.9]} 32... Nxe3 {[%clk 0:00:27]} 33. fxe3 {[%clk 0:00:38.8]}
33... Rc7 {[%clk 0:00:21.4]} 34. Rb8 {[%clk 0:00:34.4]} 34... Kg7 {[%clk
0:00:19]} 35. Be4 {[%clk 0:00:24.8]} 35... Bd6 {[%clk 0:00:18.6]} 36. Rb7 {[%clk
0:00:22.9]} 36... Rxb7 {[%clk 0:00:15.1]} 37. Bxb7 {[%clk 0:00:22.6]} 37... f5
{[%clk 0:00:14.8]} 38. Kf2 {[%clk 0:00:22.3]} 38... Kf6 {[%clk 0:00:15.2]} 39.
Bf3 {[%clk 0:00:21.2]} 39... h6 {[%clk 0:00:15.4]} 40. Ke2 {[%clk 0:00:18.6]}
40... g5 {[%clk 0:00:15.7]} 41. e4 {[%clk 0:00:17.6]} 41... fxe4 {[%clk
0:00:13.4]} 42. Bxe4 {[%clk 0:00:17.8]} 42... h5 {[%clk 0:00:13.8]} 43. d5
{[%clk 0:00:17.5]} 43... Ke5 {[%clk 0:00:11.4]} 44. Bg6 {[%clk 0:00:16.8]} 44...
h4 {[%clk 0:00:11.6]} 45. dxe6 {[%clk 0:00:15.2]} 45... Kxe6 {[%clk 0:00:10.7]}
46. Kf3 {[%clk 0:00:14.6]} 46... hxg3 {[%clk 0:00:10.3]} 47. hxg3 {[%clk
0:00:14.2]} 47... Kf6 {[%clk 0:00:11.2]} 48. Be4 {[%clk 0:00:14.4]} 48... Bc7
{[%clk 0:00:11.9]} 49. g4 {[%clk 0:00:14.7]} 49... Bb8 {[%clk 0:00:12.8]} 50.
Bf5 {[%clk 0:00:15]} 50... Bf4 {[%clk 0:00:13.6]} 51. Be4 {[%clk 0:00:15]} 51...
Ke5 {[%clk 0:00:14.5]} 52. Bf5 {[%clk 0:00:15.4]} 52... Kd4 {[%clk 0:00:15.4]}
53. Be4 {[%clk 0:00:15.7]} 53... Kc3 {[%clk 0:00:16.3]} 54. Bf5 {[%clk
0:00:16.1]} 54... Kb2 {[%clk 0:00:17.2]} 55. Be4 {[%clk 0:00:16.4]} 55... Ka3
{[%clk 0:00:18.1]} 56. Bf5 {[%clk 0:00:16.8]} 56... Kb4 {[%clk 0:00:19]} 57. Be4
{[%clk 0:00:17.1]} 57... Ka5 {[%clk 0:00:19.9]} 58. Bf5 {[%clk 0:00:17.3]} 58...
Kb6 {[%clk 0:00:20.8]} 59. Be4 {[%clk 0:00:17.3]} 59... Kc7 {[%clk 0:00:21.7]}
60. Bf5 {[%clk 0:00:15.9]} 60... Kd8 {[%clk 0:00:22.6]} 61. Be4 {[%clk
0:00:15.5]} 1/2-1/2

[Event "*** SCC Grand Prix: Titled Tuesday Blitz"]
[Site "Chess.com"]
[Date "2020.07.07"]
[Round "8"]
[White "PetrolulSah"]
[Black "MacDaddyMac"]
[Result "1-0"]
[WhiteElo "2179"]
[BlackElo "2276"]
[TimeControl "180+1"]
[EndTime "11:37:01 PDT"]
[Termination "PetrolulSah won on time"]

1. d4 {[%clk 0:03:00.9]} 1... Nf6 {[%clk 0:02:58.9]} 2. Nf3 {[%clk 0:03:00.5]}
2... e6 {[%clk 0:02:59.3]} 3. g3 {[%clk 0:03:00.9]} 3... b6 {[%clk 0:02:59.9]}
4. Bg2 {[%clk 0:03:01]} 4... Bb7 {[%clk 0:03:00.5]} 5. O-O {[%clk 0:03:01.4]}
5... Be7 {[%clk 0:03:01.1]} 6. c4 {[%clk 0:03:01.3]} 6... O-O {[%clk 0:03:00.8]}
7. Nc3 {[%clk 0:03:01.3]} 7... Ne4 {[%clk 0:03:01.1]} 8. Ne5 {[%clk 0:02:55.2]}
8... Nxc3 {[%clk 0:02:57.5]} 9. bxc3 {[%clk 0:02:56.1]} 9... Bxg2 {[%clk
0:02:57.3]} 10. Kxg2 {[%clk 0:02:56.7]} 10... d6 {[%clk 0:02:58.2]} 11. Nd3
{[%clk 0:02:56.5]} 11... f5 {[%clk 0:02:58.8]} 12. f4 {[%clk 0:02:54.8]} 12...
c5 {[%clk 0:02:57.9]} 13. Nf2 {[%clk 0:02:54.6]} 13... Bf6 {[%clk 0:02:57.1]}
14. e4 {[%clk 0:02:54.3]} 14... fxe4 {[%clk 0:02:56.6]} 15. Nxe4 {[%clk
0:02:55.2]} 15... Qc7 {[%clk 0:02:56.4]} 16. d5 {[%clk 0:02:52.9]} 16... e5
{[%clk 0:02:53.4]} 17. f5 {[%clk 0:02:52.3]} 17... Nd7 {[%clk 0:02:52.3]} 18. g4
{[%clk 0:02:51.7]} 18... Rae8 {[%clk 0:02:51.6]} 19. g5 {[%clk 0:02:51.3]} 19...
Bd8 {[%clk 0:02:51.8]} 20. Qg4 {[%clk 0:02:49]} 20... Rf7 {[%clk 0:02:45.9]} 21.
g6 {[%clk 0:02:40.4]} 21... hxg6 {[%clk 0:02:42.6]} 22. fxg6 {[%clk 0:02:39.8]}
22... Rxf1 {[%clk 0:02:42.5]} 23. Kxf1 {[%clk 0:02:34.1]} 23... Nf6 {[%clk
0:02:42.4]} 24. Qh4 {[%clk 0:02:25.7]} 24... Kf8 {[%clk 0:02:41]} 25. Qh8+
{[%clk 0:02:23.7]} 25... Ng8 {[%clk 0:02:41.1]} 26. Kg2 {[%clk 0:02:22]} 26...
Qd7 {[%clk 0:02:36.1]} 27. Qh5 {[%clk 0:02:06.6]} 27... Nf6 {[%clk 0:02:31.9]}
28. Nxf6 {[%clk 0:02:03.1]} 28... Bxf6 {[%clk 0:02:31.4]} 29. Bg5 {[%clk
0:01:59.9]} 29... Ke7 {[%clk 0:02:04.9]} 30. Rf1 {[%clk 0:01:55.9]} 30... Rf8
{[%clk 0:01:56.6]} 31. h3 {[%clk 0:01:24.9]} 31... Qa4 {[%clk 0:01:48.4]} 32.
Qh7 {[%clk 0:01:13.7]} 32... Qc2+ {[%clk 0:01:45.1]} 33. Kg1 {[%clk 0:01:06.3]}
33... Qd3 {[%clk 0:01:15.5]} 34. Bxf6+ {[%clk 0:00:58.3]} 34... Ke8 {[%clk
0:01:05.6]} 35. Qh4 {[%clk 0:00:43.6]} 35... gxf6 {[%clk 0:00:33.6]} 36. g7
{[%clk 0:00:30.2]} 36... Qg6+ {[%clk 0:00:23]} 37. Kh2 {[%clk 0:00:30]} 37...
Qxg7 {[%clk 0:00:22]} 38. Rg1 {[%clk 0:00:29.9]} 38... Qh8 {[%clk 0:00:16.4]}
39. Qg4 {[%clk 0:00:28.8]} 39... Qh6 {[%clk 0:00:13.8]} 40. Qc8+ {[%clk
0:00:24]} 40... Ke7 {[%clk 0:00:11.3]} 41. Qc7+ {[%clk 0:00:22.9]} 41... Ke8
{[%clk 0:00:11.2]} 42. Qc8+ {[%clk 0:00:21.1]} 42... Ke7 {[%clk 0:00:11.2]} 43.
Qe6+ {[%clk 0:00:21.2]} 43... Kd8 {[%clk 0:00:11]} 44. Qxd6+ {[%clk 0:00:21.3]}
44... Ke8 {[%clk 0:00:11.4]} 45. Qb8+ {[%clk 0:00:19]} 45... Kd7 {[%clk
0:00:09]} 46. Qxa7+ {[%clk 0:00:18.9]} 46... Ke8 {[%clk 0:00:08.9]} 47. Qb8+
{[%clk 0:00:18]} 47... Kd7 {[%clk 0:00:09.2]} 48. Qb7+ {[%clk 0:00:17.6]} 48...
Ke8 {[%clk 0:00:08.2]} 49. Qc6+ {[%clk 0:00:17.7]} 49... Ke7 {[%clk 0:00:06.9]}
50. d6+ {[%clk 0:00:17.2]} 50... Ke6 {[%clk 0:00:04.4]} 51. d7+ {[%clk
0:00:10.4]} 51... Ke7 {[%clk 0:00:04.5]} 52. Qd5 {[%clk 0:00:10]} 52... Qf4+
{[%clk 0:00:04.2]} 53. Kh1 {[%clk 0:00:10.3]} 53... Rd8 {[%clk 0:00:02.9]} 54.
Rg7+ {[%clk 0:00:09]} 1-0